Cogmind - Beta 16 @@@ ROGUE MODE // 2025.11.29 @ 20:37:11 Player: Red Box Result: Destroyed by G-50 Soldier with Heavy Laser Performance ------------- Evolutions (5) 2500 Regions Visited (15) 3000 Robots Destroyed (219) 1095 Value Destroyed (9573) 9573 Prototype IDs (67) 1340 Alien Tech Used (0) 0 Bonus (7472) 7472 TOTAL SCORE: 24980 Bonus ------- High Alert Combat Kills 891 Follower Combat Kills 2512 Network Hubs Disabled 200 Registered with UFD 300 Met Optimus in HQ 500 Met Imprinter 300 Destroyed Z-Imprinter 1000 Triggered Deep Caves Wall 500 Exposed GOLEM Chamber 500 Met Zhirov 300 Built Enhanced Grunts 300 A7 Reached Mainframe 300 Met R17 at Cetus 500 Friendly Fire -631 Cogmind --------- Core Integrity 0/1000 Matter 300/300 Energy 301/1150 System Corruption 11% Temperature Cool (9) Movement Treading (410) Ox3 Location -5/Hub_04(d) Parts ------- > --- POWER (1) -------- Micro Fission Core > --- PROPULSION (2) --- Armored Medium Treads Assembled Alloy Leg > --- UTILITY (11) ----- Assembled Nanovents High-capacity Storage Unit Assembled Biocell Array Enhanced Optical Array Improved Sensor Array Improved Signal Interpreter Tactical Coordination Suite (fused) Core Analyzer Assembled Alloy Armor GOLEM Unit > --- WEAPON (3) ------- Assembled Focal Cannon Assembled Focal Cannon > --- INVENTORY (20) --- Light Angular Momentum Engine Flexi-carbon Leg Experimental Heat Sink Zionite Biocell (600) Zionite Biocell (196) Surveybot 24 Chip Centrium Medium Armor Plating Centrium Medium Armor Plating Medium Reflective Plating GOLEM Unit GOLEM Unit Amulet of Y3-NDR Advanced Variable Charge Gun Faulty Heavy Proton Missile Launcher Scatter Rocket Array Molecular Deconstructor Peak State ------------ > --- POWER ------------ Cold Fusion Reactor Assembled Flux Generator Meta Core > --- PROPULSION ------- Assembled Alloy Leg Assembled Alloy Leg > --- UTILITY ---------- Assembled Nanovents Assembled Nanovents Assembled Nanovents High-capacity Storage Unit Assembled Biocell Array Spectral Analyzer Tactical Coordination Suite Assembled Alloy Armor GOLEM Unit Power Bank > --- WEAPON ----------- Zionite Phaser-S Assembled Focal Cannon Assembled Focal Cannon > --- INVENTORY -------- Zionite Light DM Reactor Zionite Light DM Reactor Armored Wheel Large Storage Unit Zionite Biocell Matter Compressor Modified TNC Zionite Weapon Casing Mapping Drone Bay GOLEM Unit GOLEM Unit GOLEM Unit Amulet of Y3-NDR Rocket Array Molecular Deconstructor Impact Mace [Rating: 177] Favorites ----------- Power Meta Core Engine Angular Momentum Engine Power Core Meta Core Reactor Assembled Flux Generator Propulsion Assembled Alloy Leg Treads Light Treads Leg Assembled Alloy Leg Wheel Overtuned Scrapsphere Utility Large Storage Unit Device Tactical Coordination Suite Storage Large Storage Unit Processor Spectral Analyzer Hackware Improved Hacking Suite Protection Assembled Alloy Armor Weapon Assembled Focal Cannon Energy Gun EM Shotgun Energy Cannon Assembled Focal Cannon Ballistic Gun Overtuned Barrage Gun Ballistic Cannon Improved Light Cannon Launcher Heavy Rocket Launcher Special Weapon Mining Laser Impact Weapon Impact Mace Special Melee Weapon Improved Datajack Build | -11 -10 -10 -10 -8 -6 -6 -6 -6 -6 -5 -5 -5 -5 -5 -5 ------- Run | Yrd Mat Min Sub Scr Fac Low Low Zio Dee Pro Fac Ext Cet Arc Hub Slots Evolved 10 | . . . . . 8 . . . . . 2 . . . . Power . | . . . . . . . . . . . . . . . . Propulsion . | . . . . . . . . . . . . . . . . Utility 9 | . . . . . 8 . . . . . 1 . . . . Weapon 1 | . . . . . . . . . . . 1 . . . . Parts Attached 149 | 8 14 . 11 16 29 2 3 8 15 4 15 9 1 . 14 Power 17 | 1 2 . 2 2 . . . . 1 1 2 2 . . 4 Engine 10 | 1 2 . 2 1 . . . . . 1 1 1 . . 1 Core 3 | . . . . 1 . . . . . . . . . . 2 Reactor 4 | . . . . . . . . . 1 . 1 1 . . 1 Propulsion 13 | 3 2 . 2 4 . . . . . . . . . . 2 Treads 4 | 1 . . 1 . . . . . . . . . . . 2 Leg 4 | 2 2 . . . . . . . . . . . . . . Wheel 5 | . . . 1 4 . . . . . . . . . . . Hover . | . . . . . . . . . . . . . . . . Flight . | . . . . . . . . . . . . . . . . Utility 75 | 2 2 . 1 5 20 1 3 3 10 3 12 7 1 . 5 Device 34 | 1 . . 1 2 12 . 1 2 5 1 5 1 . . 3 Storage 7 | 1 2 . . . . . . 1 2 . 1 . . . . Processor 10 | . . . . 1 4 . . . 1 . 2 1 . . 1 Hackware 4 | . . . . . 1 . . . . . 3 . . . . Protection 20 | . . . . 2 3 1 2 . 2 2 1 5 1 . 1 Artifact . | . . . . . . . . . . . . . . . . Weapon 44 | 2 8 . 6 5 9 1 . 5 4 . 1 . . . 3 Energy Gun 14 | 2 4 . 1 2 2 . . . 2 . . . . . 1 Energy Cannon 5 | . 1 . . . 3 . . . . . 1 . . . . Ballistic Gun 8 | . . . 2 2 2 . . . . . . . . . 2 Ballistic Cannon 4 | . . . 2 . . . . . 2 . . . . . . Launcher 7 | . 1 . 1 . . 1 . 4 . . . . . . . Special Weapon 2 | . 1 . . . . . . 1 . . . . . . . Impact Weapon 2 | . . . . . 2 . . . . . . . . . . Slashing Weapon . | . . . . . . . . . . . . . . . . Piercing Weapon . | . . . . . . . . . . . . . . . . Special Melee Weapon 2 | . 1 . . 1 . . . . . . . . . . . Unidentified Prototypes 23 | . . . 1 . 3 1 1 5 7 . 1 . 1 . 3 Parts Lost 36 | . 1 . . . 3 . . . 10 2 3 3 . . 14 Power 7 | . . . . . . . . . . 1 1 2 . . 3 Propulsion 3 | . . . . . . . . . 1 . . . . . 2 Utility 19 | . . . . . 3 . . . 7 1 2 1 . . 5 Weapon 7 | . 1 . . . . . . . 2 . . . . . 4 Highest Loss Streak 8 | . 1 . . . 1 . . . 4 1 2 2 . . 8 To Critical Strikes . | . . . . . . . . . . . . . . . . Average Backups 13 | 5 10 14 14 9 14 15 14 17 16 16 15 15 15 15 15 Power . | . . 1 . . . 1 1 1 1 2 1 . . 1 . Propulsion 1 | 3 4 6 3 . 1 1 1 . 1 1 . . . 1 1 Utility 5 | . . 1 2 4 4 5 5 5 7 9 10 11 10 10 9 Weapon 5 | 1 3 5 6 2 6 7 7 9 7 4 4 4 3 3 3 Tool/Special . | . . . . . . . . . . . . . . . . Unused Backups 68 | . 6 . 6 26 6 . . 2 3 . 4 1 3 . 11 Power 4 | . . . . . 2 . . . . . . 1 . . 1 Propulsion 14 | . 4 . 2 6 . . . . . . . . 1 . 1 Utility 29 | . . . 1 12 3 . . . 3 . 3 . 1 . 6 Weapon 21 | . 2 . 3 8 1 . . 2 . . 1 . 1 . 3 Tool/Special . | . . . . . . . . . . . . . . . . Average Slot Usage (%) 86 | . 99 100 99 84 78 65 69 73 72 89 89 92 88 88 87 Engine 6 | . 14 14 14 12 . . . . . 1 1 . 3 . . Core 1 | . . . . . 5 5 5 5 5 3 . . . . 2 Reactor 3 | . . . . . . . . . 3 10 12 5 1 5 1 Treads 1 | . . . 12 1 . . . . . . . . . . 3 Leg 6 | . 28 28 2 . . . . . 4 10 10 10 11 11 3 Wheel 6 | . . . 12 14 11 11 11 11 5 . . . . . . Device 17 | . 14 14 14 9 21 22 18 21 21 20 24 20 14 17 19 Storage 10 | . 14 14 14 13 5 5 5 5 6 10 10 10 11 11 10 Processor 4 | . . . . . 12 5 5 5 5 8 7 14 14 11 13 Protection 5 | . . . . 3 6 4 12 16 7 10 7 9 10 11 9 Energy Gun 7 | . 26 28 4 17 1 . 2 2 . . . . . . 1 Energy Cannon 5 | . . . . . 1 7 2 . 7 13 14 16 17 17 12 Ballistic Gun 1 | . . . 4 1 6 2 4 3 . . . . . . 2 Ballistic Cannon 2 | . . . 18 . . . . . 1 . . . . . . Special Melee Weapon 1 | . . . . 8 . . . . . . . . . . . Peak Build Rating 177 | 9 14 14 19 52 112 114 113 108 177 174 163 160 140 134 139 Average Rating 81 | 5 12 14 17 27 91 111 99 96 115 161 158 137 131 134 129 On Entrance 86 | . 9 14 14 19 50 112 110 93 98 171 144 154 128 134 134 Avg Prop Armor Cover (%) 10 | 13 . . 11 12 . . . . 3 . . . . . . Naked Turns . | . . . . . . . . . . . . . . . . Heaviest Build 178 | 12 34 34 36 46 89 89 75 95 161 169 178 158 132 127 127 Greatest Support 80 | 20 20 20 20 36 32 28 28 28 60 60 60 60 60 60 80 Greatest Overweight (x) 6 | 1 1 1 2 3 3 3 2 3 6 2 2 3 2 2 3 Average Overweight (x) 1 | . . 1 1 1 1 2 2 2 3 2 2 1 1 2 1 Largest Inventory Capacity 20 | 8 15 15 15 15 15 15 15 20 20 20 20 20 20 20 20 Average Capacity 16 | 7 11 15 15 15 15 15 15 19 20 20 20 20 20 20 20 Most Carried 20 | 7 15 15 15 15 15 15 15 20 20 20 20 20 20 20 20 Average Carried 15 | 5 10 14 14 9 14 14 14 18 19 20 19 19 19 20 19 Final Capacity 20 | 8 15 15 15 15 15 15 15 20 20 20 20 20 20 20 20 Final Carried 20 | 7 15 15 15 15 15 15 15 20 20 20 20 20 20 20 19 Scrap Suit Usage (%) 16 | . . . . . 86 100 72 91 19 . . . . . . Parts Cannibalized 17 | . . . . . 14 1 1 1 . . . . . . . Class Distribution -------------------- 46% | Mutant 21% | Generator-Golem 12% | Scrapper 5% | Commander-Golem 4% | Derelict-Mutant 3% | Golem Dominant Class ---------------- Mutant | -10/Materials Mutant | -10/Mines Mutant | -10/Subcaves Mutant | -8/Scraptown Scrapper | -6/Factory Scrapper | -6/Lower Caves Scrapper | -6/Lower Caves Scrapper | -6/Zion Mutant | -6/Deep Caves Generator-Golem | -5/Proximity Caves Generator-Golem | -5/Factory Commander-Golem | -5/Extension Commander-Golem | -5/Cetus Commander-Golem | -5/Archives Scavenger-Golem | -5/Hub_04(d) Resources | -11 -10 -10 -10 -8 -6 -6 -6 -6 -6 -5 -5 -5 -5 -5 -5 ----------- Run | Yrd Mat Min Sub Scr Fac Low Low Zio Dee Pro Fac Ext Cet Arc Hub Matter Collected 5958 | 280 395 . 566 80 1809 136 258 149 1124 114 298 279 96 10 364 Remotely . | . . . . . . . . . . . . . . . . Salvage Created 12566 | 178 526 107 69 . 2144 83 185 . 2010 1057 3284 945 128 116 1734 Parts 544 | 14 34 5 1 . 86 4 10 . 27 46 168 53 2 4 90 Haulers Intercepted 9 | . 2 . . . 3 . . . . . 1 . . . 3 Recyclers Shooed 2 | . 1 . . . . . . . . . 1 . . . . Parts Field Recycled . | . . . . . . . . . . . . . . . . Retrieved Matter . | . . . . . . . . . . . . . . . . Parts Self-Destructed 89 | . . . 15 . . . 15 . . 59 . . . . . Prevented 2 | . . . . . . 1 1 . . . . . . . . Parts Restored . | . . . . . . . . . . . . . . . . Kills | -11 -10 -10 -10 -8 -6 -6 -6 -6 -6 -5 -5 -5 -5 -5 -5 ------- Run | Yrd Mat Min Sub Scr Fac Low Low Zio Dee Pro Fac Ext Cet Arc Hub Combat Hostiles Destroyed 210 | . 13 2 2 . 24 . 3 . 62 23 42 13 2 2 22 Melee 4 | . . . . . 1 . . . 3 . . . . . . Guns 37 | . 9 2 . . 19 . 1 . . . . . . . 6 Cannons 106 | . . . 1 . 2 . 1 . 4 23 42 13 2 2 16 AOE 52 | . 4 . 1 . . . . . 47 . . . . . . Classes Destroyed 24 | 2 6 . 1 . 6 1 1 . 4 2 1 . . . . Worker 3 | . . . . . 2 . . . . . 1 . . . . Builder 6 | . 1 . . . 2 . . . . . 1 1 . . 1 Tunneler 4 | 4 . . . . . . . . . . . . . . . Hauler 9 | . 2 . . . 3 . . . . . 1 . . . 3 Recycler 8 | 1 . . . . 3 . . . . . 4 . . . . Minesweeper 1 | . . . . . . 1 . . . . . . . . . Operator 6 | . 1 . . . 2 . . . . . 1 1 . . 1 Watcher 17 | . 3 . . . 4 . . . . . 5 1 1 . 3 Swarmer 24 | . 8 . . . 1 . . . . 10 . 5 . . . Cutter 2 | . . . . . 2 . . . . . . . . . . Saboteur 2 | . . . . . . . . . . 1 1 . . . . Grunt 59 | . 5 2 . . 11 . . . . 7 23 1 . 1 9 Brawler 2 | . . . . . . . . . . 2 . . . . . Duelist 1 | . . . . . . . . . . . 1 . . . . Sentry 13 | . . . . . 3 . . . . 1 . 7 . 1 1 Specialist 1 | . . . . . . . 1 . . . . . . . . Hunter 14 | . . . . . 2 . 1 . . 2 2 . . . 7 Programmer 26 | . . . . . 5 . 1 . . . 15 . . . 5 Heavy 1 | . . . . . 1 . . . . . . . . . . Cetus Guard 2 | . . . . . . . . . . . . . 2 . . Subdweller 4 | . . . 2 . 2 . . . . . . . . . . Z-Light 7 | . . . . . . . . . 7 . . . . . . Decomposer 2 | . . . . . . 2 . . . . . . . . . Assembler 2 | . . . . . . . . . 2 . . . . . . Assembled 43 | . . . . . . . . . 43 . . . . . . Golem 11 | . . . . . . . . . 11 . . . . . . Savage 1 | . . . . . . . . . . . . 1 . . . Butcher 1 | . . . . . . . . . . . . 1 . . . Best Kill Streak 42 | 3 4 1 1 . 6 1 1 . 42 3 8 3 3 1 5 Combat Bots Only 40 | . 3 1 1 . 4 . 1 . 40 3 6 3 2 1 4 Max Kills in Single Turn 20 | 1 2 1 1 . 4 1 1 . 20 1 2 2 2 1 2 Gunslinging 1 | . 1 . . . . . . . . . . . . . . Exploded 19 | . 2 . 1 . . . . . 19 . . . . . . Melee 1 | . . . . . 1 . . . 1 . . . . . . Uniques/NPCs Destroyed 1 | . . . . . . . . . 1 . . . . . . Z-Imprinter (-6/Deep Caves) Combat | -11 -10 -10 -10 -8 -6 -6 -6 -6 -6 -5 -5 -5 -5 -5 -5 -------- Run | Yrd Mat Min Sub Scr Fac Low Low Zio Dee Pro Fac Ext Cet Arc Hub Hostile Shots Fired 1008 | . 28 10 2 . 177 . 25 . 131 73 121 41 7 1 392 Missed 273 | . 12 2 1 . 49 . 13 . 35 31 39 14 3 1 73 Hits 735 | . 16 8 1 . 128 . 12 . 96 42 82 27 4 . 319 Melee 11 | . . . . . 2 . . . 5 2 2 . . . . Projectile 724 | . 16 8 1 . 126 . 12 . 91 40 80 27 4 . 319 AOE 1 | . . . . . 1 . . . . . . . . . . Critical Strikes 23 | . . . . . 5 . 1 . 2 2 3 1 1 . 8 Part Disruptions 1 | . . . . . . . . . . . . . . . 1 Damage Taken 14293 | . 182 114 21 . 1913 . 156 . 2867 684 1247 678 98 1271 5062 Core 1577 | . 17 11 . . 171 . . . 303 69 177 63 . 288 478 Absorbed by Shields 305 | . . . . . . . . . . . 195 68 42 . . Reduced by Siege Mode 78 | . . . . . . . . . . . . . . . 78 Ignored by Resistances 1797 | . . . . . 232 . . . 80 140 237 138 24 228 718 Regen/Repaired (Parts) 431 | . 33 . . . 101 2 10 8 . . 277 . . . . Core Remaining (%) 74 | 100 . . . 88 . . . . . 36 . . . . . Volleys Fired 725 | 12 40 7 129 . 121 8 15 . 77 46 132 38 8 6 86 Largest 3 | 2 2 2 2 . 2 2 2 . 3 3 3 3 3 3 3 Hottest 180 | 90 105 90 100 . 180 162 162 . 162 75 75 75 75 75 105 Shots Fired 1334 | 24 65 14 136 . 212 14 27 . 121 125 299 107 22 10 158 Gun 394 | 24 54 14 47 . 171 . 18 . 13 . . . . . 53 Cannon 911 | . 3 . 85 . 41 14 9 . 91 125 299 107 22 10 105 Launcher 21 | . 2 . 2 . . . . . 17 . . . . . . Special 8 | . 6 . 2 . . . . . . . . . . . . Kinetic 326 | . . . 97 . 149 . 9 . 37 . . . . . 34 Thermal 840 | 24 9 . 37 . 25 2 9 . 47 125 299 107 22 10 124 Explosive 21 | . 2 . 2 . . . . . 17 . . . . . . Electromagnetic 147 | . 54 14 . . 38 12 9 . 20 . . . . . . Robot Hit Streak 26 | 6 6 6 3 . 9 3 7 . 9 18 17 26 14 16 19 Robot Miss Streak 9 | 2 6 4 2 . 9 2 2 . 8 2 4 3 2 . 4 Penetration Max . | . . . . . . . . . . . . . . . . Secondary Targets 5 | . 2 . . . 3 . . . . . . . . . . Max Gunslinging Chain 1 | . 1 . . . 1 . . . . . . . . . . Shots Hit Robots 748 | 13 37 11 4 2 143 6 18 . 75 82 153 77 17 8 102 Core Hits 513 | 6 33 6 4 . 107 1 2 . 184 29 61 26 10 3 41 Critical Kills 9 | . . . . . 1 . . . 5 . . . . . 3 Critical Parts Destroyed 15 | . . . . . 2 . . . 13 . . . . . . Critical Strikes 29 | 1 . . . . 4 . 3 . 18 . . . . . 3 Burn 4 | 1 . . . . . . 3 . . . . . . . . Destroy 10 | . . . . . 3 . . . 4 . . . . . 3 Smash 15 | . . . . . 1 . . . 14 . . . . . . Melee Attacks 112 | . . . . 2 45 . 5 . 60 . . . . . . Impact 110 | . . . . . 45 . 5 . 60 . . . . . . Slashing . | . . . . . . . . . . . . . . . . Piercing . | . . . . . . . . . . . . . . . . Sneak Attacks 5 | . . . . 2 3 . . . . . . . . . . Combat Hostiles . | . . . . . . . . . . . . . . . . Follow-up Attacks . | . . . . . . . . . . . . . . . . Damage Inflicted 36083 | 167 784 142 277 . 4638 228 465 . 8381 3703 8159 3792 889 328 4130 Guns 4649 | 167 571 142 . . 2295 . 316 . 150 . . . . . 1008 Cannons 22110 | . 18 . 63 . 958 191 116 . 782 3703 8157 3792 889 328 3113 Explosions 5829 | . 195 . 214 . 760 37 . . 4623 . . . . . . Melee 3484 | . . . . . 625 . 33 . 2826 . . . . . . Ramming 11 | . . . . . . . . . . . 2 . . . 9 Kinetic 2979 | . . . 63 . 1943 . 111 . 374 . . . . . 488 Thermal 21629 | 167 112 . . . 352 37 205 . 254 3703 8157 3792 889 328 3633 Explosive 5546 | . 101 . 214 . 760 . . . 4471 . . . . . . Electromagnetic 2434 | . 571 142 . . 958 191 116 . 456 . . . . . . Impact 3484 | . . . . . 625 . 33 . 2826 . . . . . . Slashing . | . . . . . . . . . . . . . . . . Piercing . | . . . . . . . . . . . . . . . . Highest Corruption 11 | . . . . . 3 3 4 4 2 2 9 9 4 4 11 Average Corruption 3 | . . . . . 2 3 3 4 1 2 5 4 4 4 6 Corruption Purged 7 | . . . . . 2 . . . . . . 5 . . . Corruption Blocked . | . . . . . . . . . . . . . . . . Effects 306 | . . . . . 15 26 17 2 25 30 86 57 9 2 37 Message Errors 71 | . . . . . 2 8 3 . 12 4 15 13 1 1 12 Matter Fused 72 | . . . . . 3 5 5 1 4 8 22 16 4 . 4 Heat Flow Errors 47 | . . . . . 3 3 3 . 5 7 13 7 . . 6 Energy Discharges 31 | . . . . . 2 2 2 . 1 2 11 5 1 . 5 Parts Rejected 2 | . . . . . . . . . . . . . . . 2 Parts Fused 5 | . . . . . . 1 1 . . 1 . 1 . . 1 Data Loss (minor) 37 | . . . . . . 5 1 . 1 5 11 6 3 1 4 Data Loss (major) 16 | . . . . . 2 1 1 1 1 1 6 3 . . . Misfires 8 | . . . . . . 1 . . 1 1 2 2 . . 1 Alerts 8 | . . . . . 2 . 1 . . 1 2 2 . . . Weapon Failures 9 | . . . . . 1 . . . . . 4 2 . . 2 Overload Shots . | . . . . . . . . . . . . . . . . Overflow Damage 3443 | . . . . . 320 85 23 . 1609 141 853 214 . 28 170 Projectiles 1628 | . . . . . 88 85 . . 49 141 853 214 . 28 170 Explosions 224 | . . . . . 106 . . . 118 . . . . . . Melee 1591 | . . . . . 126 . 23 . 1442 . . . . . . Knockbacks 15 | . . . 1 . 2 . 1 . 11 . . . . . . Impact 12 | . . . . . 2 . 1 . 9 . . . . . . Kinetic 3 | . . . 1 . . . . . 2 . . . . . . Secondary . | . . . . . . . . . . . . . . . . Self-Inflicted Damage 131 | . 34 . . . 97 . . . . . . . . . . Shots 2 | . 1 . . . 1 . . . . . . . . . . Rammed . | . . . . . . . . . . . . . . . . Targets Rammed 3 | . . . . . . . . . . . 1 . . . 2 Kicked 3 | . . . . . . . . . . . 1 . . . 2 Crushed . | . . . . . . . . . . . . . . . . Highest Temperature 410 | 90 174 210 . . 345 266 410 . 260 174 262 242 15 . 244 Average Temperature 70 | 37 38 90 . . 101 61 159 . 96 34 68 52 10 . 57 Received Heat Transfer 2513 | . 39 63 6 . 489 . . . 585 186 250 130 . . 765 Effects 5 | . . . . . 1 . 2 . 1 . 1 . . . . Energy Bleed 3 | . . . . . 1 . . . 1 . 1 . . . . Interference 2 | . . . . . . . 2 . . . . . . . . Siege Activations 2 | . . . . . . . . . . . . . . . 2 Total Turns 56 | . . . . . . . . . . . . . . . 56 Longest Duration 33 | . . . . . . . . . . . . . . . 33 Martial Activations . | . . . . . . . . . . . . . . . . Shielding Activations . | . . . . . . . . . . . . . . . . Robots Disrupted . | . . . . . . . . . . . . . . . . Combat Hostiles . | . . . . . . . . . . . . . . . . Robots Corrupted 22 | . 1 . . . 5 . 1 . 15 . . . . . . Combat Hostiles 18 | . . . . . 2 . 1 . 15 . . . . . . Parts Fried 25 | . 2 1 . . 16 1 5 . . . . . . . . Impact Corruptions 45 | . . . . . 5 . 1 . 39 . . . . . . Robots Melted . | . . . . . . . . . . . . . . . . Combat Hostiles . | . . . . . . . . . . . . . . . . Parts Melted 16 | 3 . . . . 2 . . . . . 4 2 . . 5 Heat Transferred 13249 | 532 187 . . . 585 50 650 . 150 2000 4175 1941 500 200 2279 Parts Sabotaged . | . . . . . . . . . . . . . . . . Parts Stolen . | . . . . . . . . . . . . . . . . Parts Stripped . | . . . . . . . . . . . . . . . . Power Chain Reactions 4 | . 2 . . . . 1 . . 1 . . . . . . Alert | -11 -10 -10 -10 -8 -6 -6 -6 -6 -6 -5 -5 -5 -5 -5 -5 ------- Run | Yrd Mat Min Sub Scr Fac Low Low Zio Dee Pro Fac Ext Cet Arc Hub Maximum Alert Level 4 | . . . . . 3 . . . . . 4 4 3 3 2 Low Security (%) 39 | 100 100 100 . . 27 . . . . . 25 . . . 3 Level 1 23 | . . . . . 36 . . . . . 24 17 . 42 93 Level 2 23 | . . . . . 36 . . . . . 28 56 6 55 2 Level 3 9 | . . . . . . . . . . . 16 11 93 1 . Level 4 4 | . . . . . . . . . . . 6 14 . . . Level 5 . | . . . . . . . . . . . . . . . . High Security . | . . . . . . . . . . . . . . . . Max Security . | . . . . . . . . . . . . . . . . Peak Influence 1236 | 15 124 38 . . 704 . . . . . 1126 1236 847 720 455 Initial 647 | . . . . . . . . . . . 114 546 647 298 231 Average 331 | 1 25 1 . . 334 . . . . . 443 608 774 504 298 Influence Increases 8282 | 25 496 50 96 . 1634 5 90 . . 734 1977 1447 400 502 826 Destroy 0b10 Robot/C 4120 | . 260 40 60 . 680 . 60 . . 560 1000 620 160 240 440 Destroy 0b10 Robot/NC 315 | 25 35 . . . 95 5 . . . . 65 25 10 15 40 Destroy Leader 686 | . 50 10 10 . 196 . . . . 60 182 56 . . 122 Allied During Kill 1277 | . . . 26 . 163 . . . . 24 76 588 165 235 . Successful Hack 266 | . 51 . . . 70 . . . . . 120 25 . . . Select Force Hacks 110 | . 60 . . . . . . . . . . . . . 50 Disable Machine 360 | . 15 . . . 135 . . . . . 120 45 15 . 30 Destroy Structure 548 | . 25 . . . 85 . . . . . 234 58 50 12 84 Partial Spotted 30 | . . . . . 15 . . . . . . . . . 15 Lose Combat Pursuer 570 | . . . . . 195 . 30 . . 90 180 30 . . 45 Influence Decreases 7829 | 25 496 50 62 34 972 667 90 . . 551 1045 1405 812 587 1033 Entered New Map 2304 | . . . . 34 . 246 . . . . 69 569 510 447 429 Time Decay 4298 | 25 486 50 62 . 635 421 90 . . 481 656 646 222 60 464 Lost Part 260 | . 10 . . . 30 . . . . 20 30 30 . . 140 Lost Ally 817 | . . . . . 307 . . . . 50 140 160 80 80 . Purge Threat 150 | . . . . . . . . . . . 150 . . . . Squads Dispatched 60 | . 2 . . . 21 . . . . 1 23 1 . . 12 Investigation 24 | . 2 . . . 7 . . . . . 9 . . . 6 Extermination 15 | . . . . . 5 . . . . . 8 . . . 2 Reinforcement 13 | . . . . . 6 . . . . . 2 1 . . 4 Assault 4 | . . . . . . . . . . 1 3 . . . . Garrison 4 | . . . . . 3 . . . . . 1 . . . . Intercept . | . . . . . . . . . . . . . . . . Searches Triggered . | . . . . . . . . . . . . . . . . Unchained Authorized 1 | . . . . . . . . . . . . 1 . . . Construction Impeded 3 | . . . . . 1 . . . . . 1 . . . 1 Haulers Reinforced 3 | . . . . . 1 . . . . . . . . . 2 Active Scanning Responses . | . . . . . . . . . . . . . . . . Cargo Convoy Interrupts 1 | . . . . . 1 . . . . . . . . . . Stealth | -11 -10 -10 -10 -8 -6 -6 -6 -6 -6 -5 -5 -5 -5 -5 -5 --------- Run | Yrd Mat Min Sub Scr Fac Low Low Zio Dee Pro Fac Ext Cet Arc Hub Distress Signals 14 | . 2 . . . 4 . . . . . 1 2 1 1 3 Communications Jammed . | . . . . . . . . . . . . . . . . Distress Signals . | . . . . . . . . . . . . . . . . Times Spotted 367 | . 17 2 13 . 61 . 6 . 65 31 61 37 10 26 38 Peak Tracking Total 36 | . 3 2 2 . 4 . 2 . 36 7 9 7 5 16 8 Tactical Retreats 30 | . . . . . 7 . 2 . 8 4 6 2 . . 1 Traps | -11 -10 -10 -10 -8 -6 -6 -6 -6 -6 -5 -5 -5 -5 -5 -5 ------- Run | Yrd Mat Min Sub Scr Fac Low Low Zio Dee Pro Fac Ext Cet Arc Hub Traps Triggered 6 | . . . . . . . . . . . 4 1 . . 1 Indirectly . | . . . . . . . . . . . . . . . . Trap Hack Attempts 5 | . 5 . . . . . . . . . . . . . . Triggered . | . . . . . . . . . . . . . . . . Disarmed 1 | . . . . . 1 . . . . . . . . . . Reprogrammed 1 | . 1 . . . . . . . . . . . . . . Reused . | . . . . . . . . . . . . . . . . Traps Extracted . | . . . . . . . . . . . . . . . . Installed 1 | . . . . 1 . . . . . . . . . . . Triggered . | . . . . . . . . . . . . . . . . Most Traps Carried 1 | . . . . 1 . . . . . . . . . . . Machines | -11 -10 -10 -10 -8 -6 -6 -6 -6 -6 -5 -5 -5 -5 -5 -5 ---------- Run | Yrd Mat Min Sub Scr Fac Low Low Zio Dee Pro Fac Ext Cet Arc Hub Machines Disabled 31 | . 1 . 1 . 9 . 2 . 3 1 8 3 1 . 2 Max in Single Turn 2 | . 1 . 1 . 2 . 1 . 1 1 1 1 1 . 1 Garrison Access 6 | . . . . . 3 . . . . . 2 . . . 1 Network Hub 1 | . . . . . . . . . . . . . . . 1 Machines Repaired . | . . . . . . . . . . . . . . . . Machines Dismantled . | . . . . . . . . . . . . . . . . Machines Sabotaged 1 | . . . . . . . . . . . . . . . 1 Overloaded Fab Kills . | . . . . . . . . . . . . . . . . Hacking | -11 -10 -10 -10 -8 -6 -6 -6 -6 -6 -5 -5 -5 -5 -5 -5 --------- Run | Yrd Mat Min Sub Scr Fac Low Low Zio Dee Pro Fac Ext Cet Arc Hub Machines Accessed 89 | . 11 . 2 6 24 . 1 . . . 29 9 1 . 6 Terminals 44 | . 8 . . . 9 . 1 . . . 11 9 1 . 5 Fabricators 8 | . . . . . 4 . . . . . 4 . . . . Repair Stations 4 | . 1 . . . . . . . . . 3 . . . . Recycling Units 14 | . 2 . . . 5 . . . . . 7 . . . . Scanalyzers 5 | . . . . . 3 . . . . . 2 . . . . Garrison Access 6 | . . . . . 3 . . . . . 2 . . . 1 Total Hacks 299 | . 50 . 4 54 66 . 1 . . . 93 15 1 . 15 Successful 194 | . 27 . 4 54 42 . 1 . . . 56 7 . . 3 Failed 104 | . 22 . . . 24 . . . . . 37 8 1 . 12 Catastrophic 13 | . . . . . 1 . . . . . 5 3 1 . 3 Database Lockouts 1 | . 1 . . . . . . . . . . . . . . Manual 157 | . 39 . . . 36 . 1 4 . . 53 12 1 . 11 Terminals 142 | . 41 . . . 25 . 1 . . . 47 15 1 . 12 Fabricators 19 | . . . . . 11 . . . . . 8 . . . . Repair Stations 11 | . 3 . . . . . . . . . 8 . . . . Recycling Units 37 | . 6 . . . 13 . . . . . 18 . . . . Scanalyzers 22 | . . . . . 12 . . . . . 10 . . . . Garrison Access 10 | . . . . . 5 . . . . . 2 . . . 3 Terminal Hacks 79 | . 8 . 4 54 2 . 1 . . . 9 1 . . . Record 57 | . . . 3 53 . . 1 . . . . . . . . Robot Analysis 5 | . 4 . . . . . . . . . 1 . . . . Prototype ID Bank 3 | . 1 . . . . . . . . . 2 . . . . Open Door 1 | . . . . . . . . . . . . 1 . . . Emergency Access Points 1 | . . . . . . . . . . . 1 . . . . Terminal Index 2 | . 1 . . . . . . . . . 1 . . . . Unreport Threat 1 | . . . . . . . . . . . 1 . . . . Locate Traps 3 | . . . . . 1 . . . . . 2 . . . . Disarm Traps 1 | . . . . . 1 . . . . . . . . . . Dispatch Records 1 | . 1 . . . . . . . . . . . . . . Hauler Manifests 1 | . 1 . . . . . . . . . . . . . . Zone Layout 1 | . . . . . . . . . . . 1 . . . . Proto ID Catalog 2 | . . . 1 1 . . . . . . . . . . . Fabricator Hacks 4 | . . . . . 3 . . . . . 1 . . . . Network Status 1 | . . . . . 1 . . . . . . . . . . Load Schematic 1 | . . . . . . . . . . . 1 . . . . Build 2 | . . . . . 2 . . . . . . . . . . Repair Station Hacks 6 | . 2 . . . . . . . . . 4 . . . . Scan Component 3 | . 1 . . . . . . . . . 2 . . . . Repair 3 | . 1 . . . . . . . . . 2 . . . . Recycling Unit Hacks 6 | . 1 . . . 3 . . . . . 2 . . . . Retrieve Matter 1 | . . . . . 1 . . . . . . . . . . Retrieve Components 5 | . 1 . . . 2 . . . . . 2 . . . . Scanalyzer 18 | . . . . . 8 . . . . . 10 . . . . Insert Component 9 | . . . . . 4 . . . . . 5 . . . . Analyze 7 | . . . . . 3 . . . . . 4 . . . . Retrieve Study 2 | . . . . . 1 . . . . . 1 . . . . Garrison Access Hacks 6 | . . . . . 3 . . . . . 2 . . . 1 Seal Access 6 | . . . . . 3 . . . . . 2 . . . 1 Unauthorized Hacks 75 | . 16 . . . 23 . . . . . 28 6 . . 2 Terminals 54 | . 14 . . . 13 . . . . . 19 6 . . 2 Track 6 | . 1 . . . 1 . . . . . 4 . . . . Assimilate 5 | . 1 . . . 1 . . . . . 3 . . . . Botnet 14 | . 4 . . . 4 . . . . . 4 2 . . . Disrupt 1 | . 1 . . . . . . . . . . . . . . Operators 2 | . 1 . . . 1 . . . . . . . . . . Skim 24 | . 6 . . . 6 . . . . . 8 4 . . . Sabotage 2 | . . . . . . . . . . . . . . . 2 Fabricators 8 | . . . . . 5 . . . . . 3 . . . . Report 1 | . . . . . 1 . . . . . . . . . . Prioritize 1 | . . . . . 1 . . . . . . . . . . Liberate 4 | . . . . . 2 . . . . . 2 . . . . Fabnet 1 | . . . . . . . . . . . 1 . . . . Haulers 1 | . . . . . 1 . . . . . . . . . . Repair Stations 1 | . . . . . . . . . . . 1 . . . . Patch 1 | . . . . . . . . . . . 1 . . . . Recycling Units 12 | . 2 . . . 5 . . . . . 5 . . . . Tunnel 2 | . 2 . . . . . . . . . . . . . . Fedlink 9 | . . . . . 5 . . . . . 4 . . . . Scrapoids 1 | . . . . . . . . . . . 1 . . . . Scanalyzers . | . . . . . . . . . . . . . . . . Garrison Access . | . . . . . . . . . . . . . . . . Data Cores Recovered 4 | . 1 . . . 1 . . . . . 1 1 . . . Used 1 | . . . . . 1 . . . . . . . . . . Hacking Detections 71 | . 11 . . . 21 . . . . . 24 8 2 . 5 Full Trace Events 8 | . 1 . . . 2 . . . . . 2 . . . 3 Feedback Events 1 | . . . . . . . . . . . . . . . 1 Corruption 1 | . . . . . . . . . . . . . . . 1 Feedback Blocked . | . . . . . . . . . . . . . . . . Robot Schematics Acquired . | . . . . . . . . . . . . . . . . Robots Built 3 | . . . . . 3 . . . . . . . . . . Authchips . | . . . . . . . . . . . . . . . . Time 134 | . . . . . 134 . . . . . . . . . . Total Robot Build Rating 12 | . . . . . 12 . . . . . . . . . . Part Schematics Acquired 7 | . . . . . 3 . . . . . 4 . . . . Parts Built 2 | . . . . . 2 . . . . . . . . . . Authchips . | . . . . . . . . . . . . . . . . Time 53 | . . . . . 53 . . . . . . . . . . Total Part Build Rating 12 | . . . . . 12 . . . . . . . . . . Part Studies Acquired 2 | . . . . . 1 . . . . . 1 . . . . Parts Repaired 3 | . 1 . . . . . . . . . 2 . . . . Time 85 | . 16 . . . . . . . . . 69 . . . . Parts Recycled . | . . . . . . . . . . . . . . . . Recycled Matter . | . . . . . . . . . . . . . . . . Retrieved Matter . | . . . . . . . . . . . . . . . . Retrieved Components 16 | . 8 . . . 1 . . . . . 7 . . . . Parts Scanalyzed 8 | . . . . . 4 . . . . . 4 . . . . Part Schematics Acquired 7 | . . . . . 3 . . . . . 4 . . . . Parts Damaged 1 | . . . . . . . . . . . 1 . . . . Bothacking | -11 -10 -10 -10 -8 -6 -6 -6 -6 -6 -5 -5 -5 -5 -5 -5 ------------ Run | Yrd Mat Min Sub Scr Fac Low Low Zio Dee Pro Fac Ext Cet Arc Hub Used RIF Installer . | . . . . . . . . . . . . . . . . Robots Hacked 2 | . . . . 2 . . . . . . . . . . . Non-combat . | . . . . . . . . . . . . . . . . Combat 2 | . . . . 2 . . . . . . . . . . . Robot Hacks Applied 2 | . . . . 2 . . . . . . . . . . . parse_system 2 | . . . . 2 . . . . . . . . . . . Relay Couplers Released 4 | . . . . . . . . . . . 4 . . . . Programmers 4 | . . . . . . . . . . . 4 . . . . Fabnet Peak Effective % . | . . . . . . . . . . . . . . . . Robots Rewired 26 | . . . . . . . 3 . . 2 . 21 . . . Allies Hacked 2 | . . . . . . . . . . . 2 . . . . Hacks Repelled . | . . . . . . . . . . . . . . . . Allies | -11 -10 -10 -10 -8 -6 -6 -6 -6 -6 -5 -5 -5 -5 -5 -5 -------- Run | Yrd Mat Min Sub Scr Fac Low Low Zio Dee Pro Fac Ext Cet Arc Hub Total Allies 68 | . 1 3 15 . 8 . 3 . . 2 6 25 5 . . Largest Group 18 | . 1 4 17 17 17 . 3 3 3 2 5 18 12 11 . Highest-Rated Group 793 | . 10 50 309 309 309 . 90 90 90 78 238 659 793 793 . Highest-Rated Ally 159 | . 10 16 19 19 32 . 30 30 30 49 50 159 159 159 . Total Orders 64 | . 1 2 14 . 3 . . . 12 5 18 9 . . . STAY 34 | . 1 1 8 . 2 . . . 7 2 7 6 . . . FOLLOW 25 | . . 1 6 . 1 . . . 5 2 7 3 . . . RETURN 5 | . . . . . . . . . . 1 4 . . . . Ally Attacks 439 | . . . 46 . 83 . . . 8 28 48 138 29 59 . Total Damage 10796 | . . . 633 . 1351 . . . 510 620 1233 2715 1265 2469 . Kills 83 | . . . 6 . 16 . . . 6 5 8 21 7 14 . Allies Corrupted 3 | . . . . . 1 . . . . . . 2 . . . Allies Melted 1 | . . . . . 1 . . . . . . . . . . Intel | -11 -10 -10 -10 -8 -6 -6 -6 -6 -6 -5 -5 -5 -5 -5 -5 ------- Run | Yrd Mat Min Sub Scr Fac Low Low Zio Dee Pro Fac Ext Cet Arc Hub Active Infowar (turns) 34961 | 29 2486 1575 1774 6083 2707 1211 892 1860 4799 3079 4341 2354 468 127 1176 Optics 16950 | . . . . 232 2707 1211 892 1860 4687 2092 . 1498 468 127 1176 Sensors 2771 | . . . . . 570 . . . . . 1785 268 . . 148 A.S.S. 1515 | . . . . . 5 1211 299 . . . . . . . . IFF 4 | . . . . . . . . . . . 4 . . . . Terrain 11413 | 29 2486 1575 1774 5549 . . . . . . . . . . . Structural 6564 | . . . . 302 2270 1171 504 1031 1286 . . . . . . T.N.C. 10498 | . . . . . . . . . 426 3079 4341 2354 298 . . Robot Analysis Total 5 | . 4 . . . . . . . . . 1 . . . . Derelict Logs Recovered 11 | . . 2 . 4 . 1 . 1 . 3 . . . . . Drone Launches 7 | . . . . . . . . . . 2 5 . . . . Drone Recoveries 5 | . . . . . . . . . . 1 4 . . . . Exploration | -11 -10 -10 -10 -8 -6 -6 -6 -6 -6 -5 -5 -5 -5 -5 -5 ------------- Run | Yrd Mat Min Sub Scr Fac Low Low Zio Dee Pro Fac Ext Cet Arc Hub Turns Passed 40731 | 185 2486 1575 4797 8535 2707 1211 892 1860 4867 3079 4412 2354 468 127 1176 Spaces Moved 20759 | 114 1217 757 2944 4304 2165 851 774 1825 1819 1050 1664 730 158 54 333 Core 14 | 14 . . . . . . . . . . . . . . . Treads 338 | 1 . . 119 . . . . . . . . . . . 218 Legs 6594 | 99 1217 757 155 . . . . . 595 1050 1664 730 158 54 115 Wheels 13813 | . . . 2670 4304 2165 851 774 1825 1224 . . . . . . Hover . | . . . . . . . . . . . . . . . . Flight . | . . . . . . . . . . . . . . . . Fastest Speed 50 | 50 120 190 120 85 80 80 90 90 90 210 210 180 180 210 180 Average Speed 137 | 113 169 190 129 115 86 90 90 96 146 210 210 192 209 210 229 Slowest Speed 410 | 160 190 190 260 135 100 100 90 100 210 210 210 240 210 210 410 Overloaded Moves . | . . . . . . . . . . . . . . . . Propulsion Burnouts . | . . . . . . . . . . . . . . . . Robots Hopped . | . . . . . . . . . . . . . . . . Potential Cave-ins 7 | . . . . . . . . . . . 7 . . . . Cave-ins Triggered . | . . . . . . . . . . . . . . . . Exploration Rate (%) 74 | 5 95 98 90 95 48 81 73 88 94 85 41 89 75 94 41 Regions Visited 15 Branch Regions 12 Pre-discovered Areas 16 | . 2 1 . 7 3 . . 1 . 1 1 . . . . Known Exits Taken 10 | . 1 1 . . 1 1 1 . . 1 1 1 1 1 . Unknown Exits Taken 5 | 1 . . 1 1 . . . 1 1 . . . . . . Scrap Searched 40 | . . 1 18 9 . 4 5 1 . 2 . . . . . Spaces Dug 128 | . 2 . 1 . 34 2 2 . 21 4 53 . . . 9 Terrain Destroyed 561 | . 27 . 24 . 84 4 5 . 206 43 110 18 1 . 39 Melee 39 | . . . . . 31 . 2 . 6 . . . . . . Projectile 279 | . 2 . 1 . 7 2 3 . 53 43 110 18 1 . 39 AOE 243 | . 25 . 23 . 46 2 . . 147 . . . . . . Terrain Rammed . | . . . . . . . . . . . . . . . . Walls Destroyed . | . . . . . . . . . . . . . . . . Machines Disabled . | . . . . . . . . . . . . . . . . Actions | -11 -10 -10 -10 -8 -6 -6 -6 -6 -6 -5 -5 -5 -5 -5 -5 --------- Run | Yrd Mat Min Sub Scr Fac Low Low Zio Dee Pro Fac Ext Cet Arc Hub Total 31696 | 141 1570 881 3795 7901 2718 1278 938 1931 3802 1826 2349 1607 287 60 612 Wait 8996 | . 257 116 667 3414 259 406 83 54 1729 698 492 594 91 . 136 Move 20744 | 113 1216 756 2943 4303 2164 850 773 1824 1818 1049 1663 729 157 53 333 Hop . | . . . . . . . . . . . . . . . . Pick Up 225 | 7 17 1 17 74 27 1 3 17 22 . 11 8 8 . 12 Fast Attach 71 | 8 3 . 3 9 4 1 2 6 6 5 11 4 1 . 8 Attach 66 | . 1 . 4 10 15 . 3 4 16 . 1 2 2 . 8 Detach 100 | . 2 . . 6 7 . 2 4 20 8 11 15 10 . 15 Swap 167 | . 14 . 11 3 57 10 13 4 29 4 9 8 1 . 4 Drop 232 | 1 15 1 21 79 19 2 4 18 25 3 18 9 9 . 8 Fire 725 | 12 40 7 129 . 121 8 15 . 77 46 132 38 8 6 86 Melee 112 | . . . . 2 45 . 5 . 60 . . . . . . Ram . | . . . . . . . . . . . . . . . . Kick 3 | . . . . . . . . . . . 1 . . . 2 Crush . | . . . . . . . . . . . . . . . . Escape Stasis 5 | . . . . . . . . . . . . 5 . . . Rewire 244 | . . . . . . . 35 . . 13 . 195 . 1 . Trap 6 | . 5 . . 1 . . . . . . . . . . . Miscellaneous . | . . . . . . . . . . . . . . . . Route ------- -11/Scrapyard -10/Materials (discovered 6 exits: *Mat x3 / *Min x2 / Sub) -10/Mines (discovered 4 exits: *Mat x2 / [*Exi] / *Sub) -10/Subcaves (discovered 4 exits: [*Mat x2] / Rec / *Scr) -8/Scraptown (discovered 2 exits: *Fac x2) -6/Factory (discovered 6 exits: *Fac x4 / *Low x2) -6/Lower Caves -6/Lower Caves (discovered 2 exits: *Fac / *Zio) -6/Zion (discovered 2 exits: [*Dee] / *Pro) -6/Deep Caves -5/Proximity Caves -5/Factory (discovered 5 exits: Fac x2 / Upp / *Ext x2) -5/Extension (discovered 2 exits: *Fac / *Cet) -5/Cetus (discovered 2 exits: *Fac / *Arc) -5/Archives (discovered 3 exits: *Fac / *Hub x2) -5/Hub_04(d) (discovered 3 exits: *Fac x3) History --------- Turn | Location | Event 10 | -11/Scrapyard | Discovered new exit (range 15) 186 | -11/Scrapyard | Entered Materials 303 | -10/Materials | Build established: Mutant 331 | -10/Materials | Discovered new exit (range 13) 441 | -10/Materials | Discovered new exit (range 14) 786 | -10/Materials | Derelicts attacked the area 853 | -10/Materials | Discovered new exit (range 8) 1324 | -10/Materials | Discovered new exit (range 15) 1457 | -10/Materials | Central database locked down 1503 | -10/Materials | Identified exit to Subcaves 1503 | -10/Materials | Identified exit to Mines 1503 | -10/Materials | Learned location of 1 exit from Materials 1567 | -10/Materials | Learned 2 Mines zone layouts 1744 | -10/Materials | Learned 2 Materials zone layouts 1799 | -10/Materials | Learned location of 1 exit from Storage 2611 | -10/Materials | Repaired EM Shotgun 2672 | -10/Materials | Entered Mines 2672 | -10/Mines | Accompanied by 1 ally 2673 | -10/Mines | Identified exit to Materials 2707 | -10/Mines | Discovered exit to Materials (range 8) 2848 | -10/Mines | Learned location of Recycling (-8) 3178 | -10/Mines | Deemed a non-threat by the Exiles lab entrance 3178 | -10/Mines | Discovered new exit (range 5) 3221 | -10/Mines | Received a Rocket Launcher from a helpful Derelict 3562 | -10/Mines | Discovered exit to Subcaves (range 13) 3811 | -10/Mines | Assisted by bots powering up and referring to "LRC-V3" 3870 | -10/Mines | Learned Materials trap positions 4098 | -10/Mines | Build established: Commander-Mutant 4247 | -10/Mines | Entered Subcaves 4247 | -10/Subcaves | Accompanied by 4 allies 4248 | -10/Subcaves | Approached by a straggling Scientist 4248 | -10/Subcaves | Identified exit to Recycling 4326 | -10/Subcaves | Shifting Twisted Machinery released Sub. Laser 4365 | -10/Subcaves | Shifting Twisted Machinery released Barrage Gun 4417 | -10/Subcaves | A swath of the cavern ceiling suddenly collapsed 4463 | -10/Subcaves | Shifting Twisted Machinery released Hvy. Riot Gun 4577 | -10/Subcaves | A Subdweller sparked back to life 4608 | -10/Subcaves | Found Prototype Power Core 4709 | -10/Subcaves | A swath of the cavern ceiling suddenly collapsed 4752 | -10/Subcaves | Discovered new exit (range 11) 5077 | -10/Subcaves | Build established: Mutant 5225 | -10/Subcaves | Visited triangular shrine 5232 | -10/Subcaves | Found Prototype Device 5233 | -10/Subcaves | Identified V3-11A's Pendant 5238 | -10/Subcaves | Befriended Subdweller 5543 | -10/Subcaves | Befriended Subdweller 5558 | -10/Subcaves | Befriended Subdweller 6655 | -10/Subcaves | Visited Clippyterm 6658 | -10/Subcaves | Learned Factory trap positions 6658 | -10/Subcaves | Learned Factory stockpile data 7025 | -10/Subcaves | Discovered new exit (range 7) 7073 | -10/Subcaves | Visited 4L-MR0's lab 7078 | -10/Subcaves | Identified Meta Core 7093 | -10/Subcaves | Found Power Bank 7223 | -10/Subcaves | Befriended Subdweller 7503 | -10/Subcaves | Befriended Subdweller 7508 | -10/Subcaves | Befriended Subdweller 7573 | -10/Subcaves | Befriended Subdweller 7600 | -10/Subcaves | Shifting Twisted Machinery released Scrap Shield 7650 | -10/Subcaves | Shifting Twisted Machinery released Spk. Treads 7718 | -10/Subcaves | Befriended Subdweller 7723 | -10/Subcaves | Befriended Subdweller 7976 | -10/Subcaves | Disturbed a concealed Subdweller 7978 | -10/Subcaves | Befriended Subdweller 8263 | -10/Subcaves | Befriended Subdweller 8273 | -10/Subcaves | Befriended Subdweller 8348 | -10/Subcaves | Befriended Subdweller 8353 | -10/Subcaves | Befriended Subdweller 8580 | -10/Subcaves | Build established: Derelict-Mutant 8763 | -10/Subcaves | Befriended Subdweller 9044 | -10/Subcaves | Entered Scraptown 9044 | -8/Scraptown | Accompanied by 17 allies 9131 | -8/Scraptown | Delivered V3-11A's Pendant to T0-NE2 in exchange for information 9145 | -8/Scraptown | Learned location of Extension (-5) 9179 | -8/Scraptown | Visited Red Mages 9229 | -8/Scraptown | Visited Bundlers 9317 | -8/Scraptown | Visited The Evicted 9392 | -8/Scraptown | Scanned Subdweller tech in exchange for log data 9395 | -8/Scraptown | Learned location of Armory (-3) 9396 | -8/Scraptown | Learned location of 1 exit from Lower Caves 9397 | -8/Scraptown | Learned Research emergency access door positions 9674 | -8/Scraptown | Build established: Mutant 9729 | -8/Scraptown | Visited TADAMA 9797 | -8/Scraptown | Visited Junk Repository 9891 | -8/Scraptown | Visited Cyclists 10054 | -8/Scraptown | Visited UFD Registry 10054 | -8/Scraptown | Registered with UFD as "Gausssourcer" 10108 | -8/Scraptown | Visited Cartography Club 10131 | -8/Scraptown | Visited Science Guys 10185 | -8/Scraptown | Visited Modified Component R&D 10203 | -8/Scraptown | Visited Derelict Rescue Squad 10234 | -8/Scraptown | Visited Research Penetration Think Tank 10258 | -8/Scraptown | Visited Observation Area 10326 | -8/Scraptown | Delivered Scrap Shield to a Scientist 10430 | -8/Scraptown | Visited Abandonware Association 10441 | -8/Scraptown | Learned abandonware demo "REPAIR.EXE" 10441 | -8/Scraptown | Learned abandonware demo "ERRANTS.EXE" 10466 | -8/Scraptown | Visited DA-N13 Charitable Foundation 10477 | -8/Scraptown | Found DCF Scrap (29 items) 10522 | -8/Scraptown | Visited Chapter 10 10630 | -8/Scraptown | Visited Infowarlord's Domain 11807 | -8/Scraptown | Discovered new exit (range 16) 12575 | -8/Scraptown | Found Scrap Suit 13006 | -8/Scraptown | Discovered new exit (range 11) 13125 | -8/Scraptown | Guru changed UFD alias to "Technocircuit" 13256 | -8/Scraptown | Entered Cyclist Reading Room 16614 | -8/Scraptown | Warned about trapping Scraptown 16754 | -8/Scraptown | Found DRS Beacon 16784 | -8/Scraptown | Found Spectral Analyzer 16997 | -8/Scraptown | Learned location of Archives (-5) 16997 | -8/Scraptown | Learned location of Quarantine (-2) 16997 | -8/Scraptown | Learned 12 Materials zone layouts 16997 | -8/Scraptown | Learned 16 Materials zone layouts 16997 | -8/Scraptown | Learned 16 Factory zone layouts 16997 | -8/Scraptown | Learned 8 Lower Caves zone layouts 16997 | -8/Scraptown | Learned 8 Upper Caves zone layouts 16997 | -8/Scraptown | Learned 12 Upper Caves zone layouts 16997 | -8/Scraptown | Learned 20 Upper Caves zone layouts 16997 | -8/Scraptown | Learned 4 Hub_04(d) zone layouts 16997 | -8/Scraptown | Learned 4 Armory zone layouts 16997 | -8/Scraptown | Learned Materials emergency access door positions 16997 | -8/Scraptown | Learned location of 3 exits from Factory 16997 | -8/Scraptown | Learned location of 2 exits from Upper Caves 16997 | -8/Scraptown | Learned location of 3 exits from Upper Caves 17039 | -8/Scraptown | Found Deep Structural Scanner 17347 | -8/Scraptown | Attached Meta Core, gained temporary slots: Propulsion, Utility, Weapon 17448 | -8/Scraptown | Met Optimus 17448 | -8/Scraptown | Accepted into 0bPrime 17579 | -8/Scraptown | Entered Factory 17579 | -6/Factory | Accompanied by 17 allies 17579 | -6/Factory | Evolved 8 slots: Utility x8 17580 | -6/Factory | Identified exit to Factory 17580 | -6/Factory | Identified exit to Lower Caves 17583 | -6/Factory | Loaded intel: 107 trap records 17751 | -6/Factory | Lost 5 allies 17792 | -6/Factory | Loaded intel: 8 recycling unit locations 17825 | -6/Factory | Lost 3 allies 17895 | -6/Factory | Build established: Scrapper 17898 | -6/Factory | Lost 3 allies 17962 | -6/Factory | Learned location of Protoforge (-2) 18006 | -6/Factory | Garrison activated, responded to threat 18012 | -6/Factory | Murdered 4 allies 18199 | -6/Factory | Cargo convoy interrupted 18284 | -6/Factory | Fabricated B-48 Gladiator (x3) 18536 | -6/Factory | Fabricated Lrn. Proton Cannon (x2) 18743 | -6/Factory | Found Hvy. Reactive Plating 18984 | -6/Factory | Learned location of 2 exits from Proximity Caves 19037 | -6/Factory | Learned Extension security intel 19082 | -6/Factory | Learned location of Lower Caves (-6) 19117 | -6/Factory | Learned 2 Lower Caves zone layouts 19142 | -6/Factory | Learned 4 Lower Caves zone layouts 19157 | -6/Factory | Learned location of 1 exit from Upper Caves 19208 | -6/Factory | Loaded intel: 26 terminal locations 19244 | -6/Factory | Learned location of Zion (-6) 20281 | -6/Factory | Found Active Sensor Suite 20286 | -6/Factory | Entered Lower Caves 20287 | -6/Lower Caves | Identified exit to Lower Caves 20288 | -6/Lower Caves | UFD Scientist delivered a prototype 20290 | -6/Lower Caves | Found Prototype Protection 20290 | -6/Lower Caves | Identified Enh. Scrap Shield 20574 | -6/Lower Caves | Build established: Skirmisher 20805 | -6/Lower Caves | Learned location of 1 exit from Factory 21138 | -6/Lower Caves | Build established: Scrapper 21497 | -6/Lower Caves | Entered another Lower Caves area 21498 | -6/Lower Caves | Identified exit to Zion 21504 | -6/Lower Caves | Discovered exit to Factory (range 17) 21588 | -6/Lower Caves | Encountered a Warlord checkpoint 21612 | -6/Lower Caves | Acquired the password to a Derelict Tinkerer's latest research 21627 | -6/Lower Caves | Found Prototype Special Weapon 21712 | -6/Lower Caves | Spotted B-75 Beast 21789 | -6/Lower Caves | Prototype Device suddenly appears! 21799 | -6/Lower Caves | Found Prototype Device 21799 | -6/Lower Caves | Identified Amulet of Y3-NDR 22202 | -6/Lower Caves | Caught by Unaware searching for contraband prototypes 22216 | -6/Lower Caves | Attacked by a delusional Derelict stockpiling Unaware 22389 | -6/Lower Caves | Entered Zion 22389 | -6/Zion | Accompanied by 3 allies 22390 | -6/Zion | Identified exit to Proximity Caves 22448 | -6/Zion | System corruption cleaned by Quarantine Array 22845 | -6/Zion | Found CR-A16's Pointy Stick 22914 | -6/Zion | Learned 4 Factory zone layouts 22917 | -6/Zion | Learned Factory emergency access door positions 22995 | -6/Zion | Found Prototype Device 23088 | -6/Zion | Learned Factory garrison access intel 23111 | -6/Zion | Acquired unknown access codes intercepted by a Zionite 23225 | -6/Zion | Turned away by Imprinter 23508 | -6/Zion | Discovered new exit (range 12) 23520 | -6/Zion | Opened final containment barrier to the Deep Caves 23535 | -6/Zion | Saw the warning signs outside the Deep Caves entrance 23544 | -6/Zion | Identified Mobile Refinery Mk. CCLXVII 23553 | -6/Zion | Identified Molecular Deconstructor 23721 | -6/Zion | Found Prototype Launcher 23721 | -6/Zion | Identified Gui. Missile Launcher 23726 | -6/Zion | Found Prototype Launcher 23816 | -6/Zion | Identified Rocket Array 23862 | -6/Zion | Build established: Mutant 24228 | -6/Zion | Build established: Scrapper 24249 | -6/Zion | Entered Deep Caves 24249 | -6/Deep Caves | Accompanied by 3 allies 24534 | -6/Deep Caves | Attacked by Z-Imprinter 24576 | -6/Deep Caves | Destroyed Z-Imprinter 24836 | -6/Deep Caves | Build established: Derelict-Mutant 25021 | -6/Deep Caves | Z-Facility disabled 25185 | -6/Deep Caves | Spotted AG-92360 25312 | -6/Deep Caves | Build established: Mutant 25488 | -6/Deep Caves | Destroyed AG-92360 25640 | -6/Deep Caves | Discovered new exit (range 20) 25794 | -6/Deep Caves | Spotted AG-16385 26719 | -6/Deep Caves | Destroyed AG-16385 26774 | -6/Deep Caves | Exposed GOLEM chamber 26775 | -6/Deep Caves | Triggered Deep Caves wall 26775 | -6/Deep Caves | Spotted AS-74481 26781 | -6/Deep Caves | Spotted AS-86461 26783 | -6/Deep Caves | Destroyed AS-86461 26807 | -6/Deep Caves | Core integrity fell below 50% 26819 | -6/Deep Caves | Destroyed AS-74481 26840 | -6/Deep Caves | Destroyed 40 combat bots 26847 | -6/Deep Caves | Lost 4 parts (3u1w) 26847 | -6/Deep Caves | Found GOLEM Unit 26976 | -6/Deep Caves | Found Prototype Processor 27026 | -6/Deep Caves | Found GOLEM Unit 27082 | -6/Deep Caves | Attached Power Bank, gained temporary slots: Power x3 27609 | -6/Deep Caves | Found GOLEM Unit 27618 | -6/Deep Caves | Found GOLEM Unit 27624 | -6/Deep Caves | Found GOLEM Unit 27729 | -6/Deep Caves | Build established: Generator-Golem 28155 | -6/Deep Caves | Found Prototype Protection 28158 | -6/Deep Caves | Identified Zio. Weapon Casing 28159 | -6/Deep Caves | Found Zio. Weapon Casing 28690 | -6/Deep Caves | Identified Modified TNC 28695 | -6/Deep Caves | Found Surveybot 24 Chip 29116 | -6/Deep Caves | Entered Proximity Caves 29116 | -5/Proximity Caves | Accompanied by 1 ally 29205 | -5/Proximity Caves | Spotted B-75 Beast 29223 | -5/Proximity Caves | Allies destroyed B-75 Beast 29223 | -5/Proximity Caves | Learned Factory security intel 29540 | -5/Proximity Caves | Learned location of Warlord (-4) 31174 | -5/Proximity Caves | Attracted the attention of an 0b10 outpost 32195 | -5/Proximity Caves | Entered Factory 32195 | -5/Factory | Accompanied by 1 ally 32195 | -5/Factory | Evolved 2 slots: Utility x1, Weapon x1 32196 | -5/Factory | Identified exit to Upper Caves 32196 | -5/Factory | Identified exit to Extension 32197 | -5/Factory | Identified exit to Factory 32201 | -5/Factory | Loaded intel: 4 garrison access locations 33690 | -5/Factory | Found Prototype Launcher 33697 | -5/Factory | Found Prototype Launcher 33849 | -5/Factory | Learned Extension security intel 33861 | -5/Factory | Loaded intel: 8 recycling unit locations 33901 | -5/Factory | Learned Extension emergency access door positions 33914 | -5/Factory | Learned location of 2 exits from Proximity Caves 33918 | -5/Factory | Learned location of 2 exits from Upper Caves 33919 | -5/Factory | Learned Quarantine trap positions 33924 | -5/Factory | Learned Extension stockpile data 33937 | -5/Factory | Learned 2 Upper Caves zone layouts 33960 | -5/Factory | Learned Research security intel 34951 | -5/Factory | Identified Scatter Rocket Array 35077 | -5/Factory | Scrapoid reinforcements arrived 35140 | -5/Factory | Lost 4 allies 35194 | -5/Factory | Repaired Broken Exp. Heat Sink 36019 | -5/Factory | Garrison activated, responded to threat 36095 | -5/Factory | First assault squad dispatched 36434 | -5/Factory | Build established: Golem 36468 | -5/Factory | Repaired Hcp. Storage Unit 36607 | -5/Factory | Entered Extension 36608 | -5/Extension | Identified exit to Cetus 36845 | -5/Extension | Rescued a captive Derelict 37258 | -5/Extension | Rescued a captive Derelict 37259 | -5/Extension | Rescued a captive Derelict 37446 | -5/Extension | Build established: Commander-Golem 37460 | -5/Extension | Rescued A7 38062 | -5/Extension | Spotted B-75 Beast 38071 | -5/Extension | Allies destroyed B-75 Beast 38139 | -5/Extension | Spotted B-75 Beast 38151 | -5/Extension | Allies destroyed B-75 Beast 38582 | -5/Extension | Lost 4 allies 38791 | -5/Extension | Unchained authorized (6S-H0T) 38865 | -5/Extension | Discovered exit to Factory (range 10) 38961 | -5/Extension | Disrupted transfer network 38961 | -5/Extension | Entered Cetus 38961 | -5/Cetus | Accompanied by 10 allies (A7) 38966 | -5/Cetus | Acquired a Cetus Manufacturing Module code from A7 38981 | -5/Cetus | Spotted Cetus Guard 38982 | -5/Cetus | Spotted Cetus Guard 38985 | -5/Cetus | Allies destroyed Cetus Guard 38985 | -5/Cetus | Spotted Cetus Guard 38985 | -5/Cetus | Spotted Cetus Guard 38992 | -5/Cetus | Lost 8 allies 38993 | -5/Cetus | Allies destroyed Cetus Guard 38997 | -5/Cetus | Allies destroyed Cetus Guard 38998 | -5/Cetus | Allies destroyed Cetus Guard 39121 | -5/Cetus | Started Cetus Manufacturing Module 39137 | -5/Cetus | Escorted A7 to Cetus Mainframe 39146 | -5/Cetus | Manufactured an Enhanced Grunt 39151 | -5/Cetus | Discovered new exit (range 22) 39171 | -5/Cetus | Manufactured an Enhanced Grunt 39191 | -5/Cetus | Spotted Cetus Guard 39192 | -5/Cetus | Spotted Cetus Guard 39194 | -5/Cetus | Spotted Cetus Guard 39195 | -5/Cetus | Spotted Cetus Guard 39196 | -5/Cetus | Manufactured an Enhanced Grunt 39201 | -5/Cetus | Destroyed Cetus Guard 39208 | -5/Cetus | Allies destroyed Cetus Guard 39213 | -5/Cetus | Allies destroyed Cetus Guard 39214 | -5/Cetus | Destroyed Cetus Guard 39217 | -5/Cetus | Discovered exit to Factory (range 21) 39221 | -5/Cetus | Manufactured an Enhanced Grunt 39240 | -5/Cetus | Lost 4 allies 39240 | -5/Cetus | Met Revision 17 39246 | -5/Cetus | Manufactured an Enhanced Grunt 39406 | -5/Cetus | Identified exit to Archives 39429 | -5/Cetus | Entered Archives 39429 | -5/Archives | Accompanied by 11 allies (A7) 39434 | -5/Archives | Received a hacking code to weaken MAIN.C 39453 | -5/Archives | Met Zhirov 39459 | -5/Archives | Reinforcements dispatched to Archives 39471 | -5/Archives | Unable to access archive contents 39484 | -5/Archives | Discovered exit to Factory (range 17) 39504 | -5/Archives | Reinforcements dispatched to Archives 39506 | -5/Archives | Zhirov warped through subspace 39515 | -5/Archives | Discovered new exit (range 13) 39524 | -5/Archives | Zhirov detonated Archives 39524 | -5/Archives | Discovered new exit (range 21) 39525 | -5/Archives | Core integrity fell below 50% 39554 | -5/Archives | Identified exit to Hub_04(d) 39555 | -5/Archives | Lost 10 allies 39556 | -5/Archives | Entered Hub_04(d) 39813 | -5/Hub_04(d) | Build established: Golem 39967 | -5/Hub_04(d) | Lost 8 parts (2p1n4u1w) 40114 | -5/Hub_04(d) | Core integrity fell below 20% 40435 | -5/Hub_04(d) | Build established: Scavenger-Golem 40560 | -5/Hub_04(d) | Discovered exit to Factory (range 17) 40641 | -5/Hub_04(d) | Network Hub disabled 40723 | -5/Hub_04(d) | System corruption reached 10% 40732 | -5/Hub_04(d) | Destroyed by G-50 Soldier with Heavy Laser Last Messages --------------- 40714_ Penetrated by Slug. 40714_ Centrium Heavy Treads destroyed. 40715_ GOLEM Unit beginning Asb. Alloy Leg integration. 40717_ System corrupted: Heat flow error (+132). 40717_ Penetrated by Slug. 40717_ Acquired 10 matter. 40722_ Slug penetrates P-70 Sage. 40722_ Destroyed Hpw. Shock Rifle. 40723_ Acquired 4 matter. 40723_ Penetrated by Slug. 40725_ Terminal disabled. 40725_ Slug penetrates P-70 Sage. 40726_ Acquired 4 matter. 40727_ K-01 Serf exits level. 40727_ KE Penetrator destroyed. 40730_ K-01 Serf exits level. 40732_ Destroyed Antigrav System. 40732_ P-70 Sage destroyed. [Achievement: I Was Wrong!] Map ----- +----------------------------------------------------+ | ????????????# # #??################### # " | | ????????????# " + ###??#"### ########??##### " | | ????????????#" " # # #??# #??????# | | ????????????#T " # ###### """" "" #??????### | | ????????????#" # + """" T" #????????? | | ????????????# # # """" "" #????????? | | ????????????###+#### # """" #????????? | | ??????????????# #??# # #######??? | | ??????????????# #??# + """" # #??? | | ?????########?# #??# ##+### !!= """" ##### #??? | | ?????# # #??# # ## != """" ##### #??? | | ?????# " " " # #### #![""# != """" + ## #??? | | ?????# " " " + #%="#" ## ## #??? | | ?????# " " " # g ![["#" / ! ## ## #??? | | ?????# # ###### T##############"########? | | ?????# " " "?# ###??# "#????????????## #? | | ?????# " " "?+ ## #?# "#?????????????# #? | | ?????# " " ??# #?# ## #?????????????# #? | | ?????# ??+ #??#|#! #?????????????# #? | | ?????######???#+######%##;#######??###### #? | | ??????????????????# =g! g #??# + #? | | ??????????????????# [ """" #??# #### #? | | ??????????????????# """" #???????# #? | | ??????????????????# =!! """" #???????# ## | | ??????????????????# =!! %|!"""" ##??????# + | | ??????????????????# =! !%@[ ;#??????# ## | | ??????????????????######%/########??????# # | | ???????????????????????#%[#?????????????# %+= | | ?????????????????????? ! ?????????????# # | | ?????????????????????### Y##????????????# [*## | | ???????????????????????# #?????????????# !!!## | | ???????????????????????# #?????????????# !%## | | ??????????????????????? ?????????????# =!!+ | | ??????????????????????? Y?????????????# !=# | | ??????????????????????? < ?????????????# # | | ??????????????????????# H ?????????????# / | | ??????????????????????## ##????????????########## | | ???????????????????????# #??????????????????????? | | ???????????????????????# #????k?????????????????? | | ???????????????????????# #??????????????????????? | | ???????????????????????# #??????????????????????? | | ??????????????????????? ??????????????????????? | | ??????????????????????? ??????????????????????? | | ??????????????????????? = ??????????????????????? | | ??????????????????????? ??????????????????????? | | ???????????????????????# #??????????????????????? | | ???????????????????????? ???????????????????????? | | ???????????????????????? ???????????????????????? | | ?????????????????????????????????????????????????? | | ?????????????????????????????????????????????????? | +----------------------------------------------------+ Best States ------------- Heat Dissipation 96 Coolant Potential 65 Energy Generation 79 Energy Capacity 1350 Matter Stores 300 Matter Capacity 300 Sight Range 24 Robot Scan Range 20 Terrain Scan Range 16 Terrain Scan Density 10 Power Amplification 20 Base Temperature (-) 150 Armor Coverage 1125 Resistance: KI 40 Resistance: TH 15 Resistance: EX 15 Resistance: EM 15 Resistance: I 15 Resistance: S 15 Resistance: P 15 Core Shielding 20 Weapon Shielding 100 Phase Shifting 5 Evasion (%) 55 Targeting Accuracy 6 Core Analysis 6 Recoil Reduction 4 Energy Filtering 30 Offensive Hacking 14 Defensive Hacking 10 Item Schematics ----------------- Enh. Nuclear Core | -6/Factory | Scanalyzed Mapping Drone Bay | -6/Factory | Scanalyzed Cld. Plasma Cannon | -6/Factory | Scanalyzed Exp. Heat Sink | -5/Factory | Scanalyzed Scatter Rocket Array | -5/Factory | Scanalyzed Enh. Optical Array | -5/Factory | Scanalyzed Lrg. Storage Unit | -5/Factory | Scanalyzed Robot Schematics ------------------ None Fabricated ------------ B-48 Gladiator | x3 | -6/Factory | Preloaded Lrn. Proton Cannon | x2 | -6/Factory | Preloaded Repaired ---------- EM Shotgun | 34% | -10/Materials Exp. Heat Sink | 53% | -5/Factory | Broken Hcp. Storage Unit | 52% | -5/Factory Studied --------- Arm. Wheel | -6/Factory | Hacked Lgt. Angular Momentum Engine | -5/Factory | Hacked Alien Tech Used ----------------- None Achievements -------------- Hulk Smash I Was Wrong! Insider Info Rodney's Helpers Some Acronyms Are Better Than Others Challenges ------------ None Game ------ Seed JammingBombardmentShell Manual? 0 Play Time 06:40:37 Cumulative 756.0 hours Start 2025.11.28 @ 23:19:44 End 2025.11.29 @ 20:37:11 Sessions 3 Manual Loads 0 Difficulty Rogue Special Mode None Game No. 526 Rogue 526 Adventurer 0 Explorer 0 Win Type - Total 1 Types 1/0/0/0/0/0/0/0/0/0 Lore% 76 Gallery% 69 Achievement% 49 Wizard Run 0 Options --------- Layout 1 ASCII 0 Keyboard 0 Movement Mouse Keybinds 0 Fullscreen 1 Font 20/SmallcapsGlow Map View 54x42 Zoom Use 0% Tactical HUD 1 Map Filters NONE Filters NONE Steam 1 RUN: b297cb92-dea0-47f7-8d6a-34795396b40d